fUST/lending_fUST_20250511
["ID","MTS","AMOUNT","RATE_DAILY","PERIOD"]
[360638082,1746912669710,-848.59,0.00012602,2]
[360638083,1746912669719,-368.30561311,0.00012602,2]
[360638085,1746912669729,-2882.98,0.00012602,2]
[360638087,1746912669738,-513.02,0.00012602,2]
[360638088,1746912669747,-463.45,0.00012602,2]
[360638090,1746912669758,-573.32,0.00012602,2]
[360638091,1746912669768,-1204.18,0.00012602,2]
[360638093,1746912669778,-1967.65,0.00012602,2]
[360638095,1746912669787,-3088.11,0.00012602,2]
[360638096,1746912669796,-1232.95,0.00012602,2]
[360638098,1746912669806,-1041.57,0.00012602,2]
[360638100,1746912669816,-700.78,0.00012602,2]
[360638101,1746912669826,-4783.86,0.00012602,2]
[360638103,1746912669835,-407.69,0.00012602,2]
[360638105,1746912669845,-1652.45,0.00012602,2]
[360638106,1746912669855,-444.01,0.00012602,2]
[360638108,1746912669866,-1176.69,0.00012602,2]
[360638110,1746912669875,-513.96,0.00012602,2]
[360638111,1746912669885,-656.69,0.00012602,2]
[360638113,1746912669894,-1565.91,0.00012602,2]
[360638115,1746912669903,-3000.0,0.00012603,2]
[360638116,1746912669913,-231.28369723,0.00012659,2]
[360638118,1746912669922,-2001.0,0.000127,2]
[360638120,1746912669931,-1000.0,0.000128,4]
[360638121,1746912669941,-400.0,0.00012876,2]
[360638123,1746912669950,-450.55,0.00012876,2]
[360638124,1746912669959,-400.0,0.00012876,2]
[360638126,1746912669969,-483.15,0.00012876,2]
[360638128,1746912669979,-400.0,0.00012876,2]
[360638129,1746912669988,-400.0,0.00012876,2]
[360638131,1746912669998,-400.0,0.00012876,2]
[360638133,1746912670007,-767.08,0.00012876,2]
[360638134,1746912670017,-523.05,0.00012876,2]
[360638135,1746912670026,-400.0,0.00012876,2]
[360638136,1746912670036,-400.0,0.00012876,2]
[360638137,1746912670045,-428.69,0.00012876,2]
[360638138,1746912670053,-1231.88,0.00012876,2]
[360638139,1746912670063,-400.0,0.00012876,2]
[360638140,1746912670072,-555.94,0.00012876,2]
[360638141,1746912670082,-1008.55,0.00012876,2]
[360638142,1746912670091,-400.0,0.00012876,2]
[360638143,1746912670101,-632.05,0.00012876,2]
[360638144,1746912670111,-1052.41,0.00012876,2]
[360638145,1746912670120,-400.0,0.00012876,2]
[360638146,1746912670129,-400.0,0.00012876,2]
[360638147,1746912670138,-459.64,0.00012876,2]
[360638148,1746912670148,-468.37,0.00012876,2]
[360638149,1746912670158,-403.73,0.00012876,2]
[360638150,1746912670166,-413.92,0.00012876,2]
[360638152,1746912670175,-619.62,0.00012876,2]
[360638153,1746912670184,-695.09,0.00012876,2]
[360638155,1746912670194,-735.58,0.00012876,2]
[360638157,1746912670204,-721.89,0.00012876,2]
[360638159,1746912670214,-1548.4,0.00012876,2]
[360638161,1746912670223,-2356.91,0.00012876,2]
[360638163,1746912670232,-794.11,0.00012876,2]
[360638165,1746912670242,-838.55,0.00012876,2]
[360638167,1746912670251,-400.0,0.00012876,2]
[360638169,1746912670261,-400.0,0.00012876,2]
[360638171,1746912670270,-3381.21,0.00012876,2]
[360638173,1746912670279,-2898.64,0.00012876,2]
[360638175,1746912670289,-481.84,0.00012876,2]
[360638177,1746912670298,-400.0,0.00012876,2]
[360638178,1746912670307,-400.0,0.00012876,2]
[360638180,1746912670316,-1333.51,0.00012876,2]
[360638182,1746912670326,-633.58,0.00012876,2]
[360638184,1746912670335,-400.0,0.00012876,2]
[360638187,1746912670345,-494.9,0.00012876,2]
[360638189,1746912670355,-513.57,0.00012876,2]
[360638191,1746912670365,-802.91,0.00012876,2]
[360638192,1746912670378,-505.78,0.00012876,2]
[360638195,1746912670388,-626.66,0.00012876,2]
[360638197,1746912670398,-809.51,0.00012876,2]
[360638199,1746912670410,-842.73,0.00012876,2]
[360638201,1746912670420,-697.59,0.00012876,2]
[360638203,1746912670429,-1841.44,0.00012876,2]
[360638205,1746912670438,-788.65,0.00012876,2]
[360638207,1746912670448,-1039.37,0.00012876,2]
[360638209,1746912670458,-569.05,0.00012876,2]
[360638211,1746912670468,-2342.17,0.00012876,2]
[360638212,1746912670477,-451.36,0.00012876,2]
[360638214,1746912670486,-695.2,0.00012876,2]
[360638216,1746912670496,-1028.56,0.00012876,2]
[360638218,1746912670506,-2119.75,0.00012876,2]
[360638220,1746912670516,-498.13,0.00012876,2]
[360638222,1746912670525,-4434.68,0.00012876,2]
[360638224,1746912670534,-935.35,0.00012876,2]
[360638226,1746912670543,-680.96,0.00012876,2]
[360638228,1746912670552,-626.61,0.00012876,2]
[360638230,1746912670561,-424.95,0.00012876,2]
[360638232,1746912670571,-1042.16,0.00012876,2]
[360638234,1746912670580,-2312.88,0.00012876,2]
[360638236,1746912670589,-450.32714474,0.00012876,2]
[360638238,1746912670598,-400.0,0.00012876,2]
[360638240,1746912670608,-688.73,0.00012876,2]
[360638242,1746912670618,-706.22,0.00012876,2]
[360638244,1746912670628,-439.66,0.00012876,2]
[360638246,1746912670638,-1085.41,0.00012876,2]
[360638248,1746912670649,-841.55,0.00012876,2]
[360638250,1746912670659,-671.75,0.00012876,2]
[360638252,1746912670668,-400.0,0.00012876,2]
[360638254,1746912670678,-2146.14,0.00012876,2]
[360638256,1746912670687,-1015.72,0.00012876,2]
[360638258,1746912670696,-6440.41,0.00012876,2]
[360638260,1746912670705,-1037.4,0.00012876,2]
[360638262,1746912670714,-440.94,0.00012876,2]
[360638264,1746912670724,-400.0,0.00012876,2]
[360638266,1746912670733,-4790.07,0.00012876,2]
[360638268,1746912670744,-1429.95,0.00012876,2]
[360638270,1746912670754,-430.02,0.00012876,2]
[360638272,1746912670763,-400.0,0.00012876,2]
[360638274,1746912670774,-1223.02,0.00012876,2]
[360638276,1746912670783,-848.59,0.00012876,2]
[360638278,1746912670792,-2882.98,0.00012876,2]
[360638280,1746912670802,-513.02,0.00012876,2]
[360638282,1746912670811,-463.45,0.00012876,2]
[360638284,1746912670821,-573.32,0.00012876,2]
[360638286,1746912670831,-1204.18,0.00012876,2]
[360638288,1746912670840,-1967.65,0.00012876,2]
[360638289,1746912670849,-3088.11,0.00012876,2]
[360638291,1746912670859,-1232.95,0.00012876,2]
[360638293,1746912670869,-1041.57,0.00012876,2]
[360638295,1746912670878,-700.78,0.00012876,2]
[360638297,1746912670888,-4783.86,0.00012876,2]
[360638299,1746912670898,-407.69,0.00012876,2]
[360638301,1746912670907,-1652.45,0.00012876,2]
[360638303,1746912670916,-444.01,0.00012876,2]
[360638305,1746912670926,-1176.69,0.00012876,2]
[360638307,1746912670935,-513.96,0.00012876,2]
[360638309,1746912670945,-656.69,0.00012876,2]
[360638311,1746912670954,-1565.91,0.00012876,2]
[360638313,1746912670963,-8967.15704911,0.000129,2]
[360638315,1746912670973,-8967.15704904,0.000129,2]
[360638317,1746912670982,-8967.15704904,0.000129,2]
[360638319,1746912670991,-8967.15704904,0.000129,2]
[360638321,1746912671000,-1030.0,0.00013,4]
[360638324,1746912671010,-200.26227703,0.00013,3]
[360638326,1746912671020,-271.6,0.00013,2]
[360638328,1746912671029,-272.2,0.00013,2]
[360638330,1746912671039,-2544.2239,0.00013,2]
[360638332,1746912671048,-1613.0,0.00013039,2]
[360638334,1746912671057,-400.0,0.0001315,2]
[360638335,1746912671066,-450.55,0.0001315,2]
[360638338,1746912671077,-400.0,0.0001315,2]
[360638339,1746912671086,-483.15,0.0001315,2]
[360638356,1746912671231,-400.0,0.0001315,2]
[360638358,1746912671243,-400.0,0.0001315,2]
[360638360,1746912671253,-400.0,0.0001315,2]
[360638362,1746912671262,-767.08,0.0001315,2]
[360638365,1746912671272,-523.05,0.0001315,2]
[360638367,1746912671283,-400.0,0.0001315,2]
[360638369,1746912671292,-432.52447268,0.0001315,2]
[360638371,1746912671302,-428.69,0.0001315,2]
[360638373,1746912671312,-1231.88,0.0001315,2]
[360638375,1746912671322,-400.0,0.0001315,2]
[360638377,1746912671331,-555.94,0.0001315,2]
[360638379,1746912671340,-1008.55,0.0001315,2]
[360638381,1746912671351,-400.0,0.0001315,2]
[360638383,1746912671360,-632.05,0.0001315,2]
[360638385,1746912671371,-1052.41,0.0001315,2]
[360638387,1746912671382,-531.77,0.0001315,2]
[360638389,1746912671391,-400.0,0.0001315,2]
[360638391,1746912671400,-459.64,0.0001315,2]
[360638393,1746912671409,-468.37,0.0001315,2]
[360638395,1746912671420,-403.73,0.0001315,2]
[360638397,1746912671429,-413.92,0.0001315,2]
[360638399,1746912671439,-619.62,0.0001315,2]
[360638401,1746912671451,-695.09,0.0001315,2]
[360638403,1746912671461,-735.58,0.0001315,2]
[360638405,1746912671470,-721.89,0.0001315,2]
[360638407,1746912671480,-1548.4,0.0001315,2]
[360638409,1746912671490,-2356.91,0.0001315,2]
[360638411,1746912671500,-794.11,0.0001315,2]
[360638413,1746912671509,-838.55,0.0001315,2]
[360638415,1746912671520,-400.0,0.0001315,2]
[360638417,1746912671529,-400.0,0.0001315,2]
[360638419,1746912671540,-3381.21,0.0001315,2]
[360638421,1746912671550,-2898.64,0.0001315,2]
[360638423,1746912671559,-481.84,0.0001315,2]
[360638425,1746912671569,-400.0,0.0001315,2]
[360638427,1746912671578,-400.0,0.0001315,2]
[360638429,1746912671587,-1333.51,0.0001315,2]
[360638431,1746912671597,-633.58,0.0001315,2]
[360638433,1746912671606,-400.0,0.0001315,2]
[360638435,1746912671615,-494.9,0.0001315,2]
[360638437,1746912671624,-513.57,0.0001315,2]
[360638439,1746912671633,-802.91,0.0001315,2]
[360638441,1746912671642,-505.78,0.0001315,2]
[360638443,1746912671652,-626.66,0.0001315,2]
[360638446,1746912671662,-809.51,0.0001315,2]
[360638448,1746912671672,-842.73,0.0001315,2]
[360638449,1746912671682,-697.59,0.0001315,2]
[360638452,1746912671692,-1841.44,0.0001315,2]
[360638454,1746912671702,-788.65,0.0001315,2]
[360638456,1746912671712,-1039.37,0.0001315,2]
[360638457,1746912671723,-569.05,0.0001315,2]
[360638460,1746912671732,-2342.17,0.0001315,2]
[360638461,1746912671743,-451.36,0.0001315,2]
[360638464,1746912671753,-695.2,0.0001315,2]
[360638466,1746912671762,-1028.56,0.0001315,2]
[360638468,1746912671772,-2119.75,0.0001315,2]
[360638470,1746912671781,-498.13,0.0001315,2]
[360638471,1746912671790,-4434.68,0.0001315,2]
[360638473,1746912671799,-935.35,0.0001315,2]
[360638475,1746912671809,-680.96,0.0001315,2]
[360638477,1746912671818,-626.61,0.0001315,2]
[360638479,1746912671828,-424.95,0.0001315,2]
[360638481,1746912671837,-1042.16,0.0001315,2]
[360638483,1746912671847,-2312.88,0.0001315,2]
[360638485,1746912671856,-400.0,0.0001315,2]
[360638487,1746912671866,-688.73,0.0001315,2]
[360638489,1746912671875,-706.22,0.0001315,2]
[360638491,1746912671885,-439.66,0.0001315,2]
[360638493,1746912671895,-1085.41,0.0001315,2]
[360638495,1746912671904,-841.55,0.0001315,2]
[360638497,1746912671914,-671.75,0.0001315,2]
[360638499,1746912671923,-400.0,0.0001315,2]
[360638501,1746912671932,-2146.14,0.0001315,2]
[360638503,1746912671942,-1015.72,0.0001315,2]
[360638505,1746912671951,-6440.41,0.0001315,2]
[360638507,1746912671961,-1037.4,0.0001315,2]
[360638509,1746912671970,-440.94,0.0001315,2]
[360638511,1746912671979,-400.0,0.0001315,2]
[360638513,1746912671988,-4790.07,0.0001315,2]
[360638515,1746912671999,-1429.95,0.0001315,2]
[360638517,1746912672008,-430.02,0.0001315,2]
[360638519,1746912672017,-400.0,0.0001315,2]
[360638521,1746912672026,-1223.02,0.0001315,2]
[360638523,1746912672036,-848.59,0.0001315,2]
[360638525,1746912672045,-2882.98,0.0001315,2]
[360638527,1746912672054,-513.02,0.0001315,2]
[360638529,1746912672064,-463.45,0.0001315,2]
[360638531,1746912672073,-573.32,0.0001315,2]
[360638533,1746912672082,-1204.18,0.0001315,2]
[360638534,1746912672091,-1967.65,0.0001315,2]
[360638535,1746912672101,-3088.11,0.0001315,2]
[360638536,1746912672111,-1232.95,0.0001315,2]
[360638537,1746912672121,-1041.57,0.0001315,2]
[360638538,1746912672130,-700.78,0.0001315,2]
[360638539,1746912672140,-4783.86,0.0001315,2]
[360638540,1746912672149,-407.69,0.0001315,2]
[360638541,1746912672158,-1652.45,0.0001315,2]
[360638542,1746912672168,-444.01,0.0001315,2]
[360638543,1746912672177,-1176.69,0.0001315,2]
[360638544,1746912672186,-513.96,0.0001315,2]
[360638545,1746912672196,-656.69,0.0001315,2]
[360638547,1746912672205,-175.972559,0.0001316,7]
[360638549,1746912672214,-400.0,0.00013424,2]
[360638551,1746912672223,-450.55,0.00013424,2]
[360638553,1746912672234,-400.0,0.00013424,2]
[360638555,1746912672243,-483.15,0.00013424,2]
[360638557,1746912672253,-400.0,0.00013424,2]
[360638559,1746912672263,-177.37241705,0.00013424,2]
[360638561,1746912672273,-400.0,0.00013424,2]
[360638563,1746912672282,-767.08,0.00013424,2]
[360638565,1746912672292,-523.05,0.00013424,2]
[360638567,1746912672302,-400.0,0.00013424,2]
[360638569,1746912672312,-428.69,0.00013424,2]
[360638571,1746912672322,-1231.88,0.00013424,2]
[360638573,1746912672331,-400.0,0.00013424,2]
[360638575,1746912672342,-555.94,0.00013424,2]
[360638577,1746912672351,-1008.55,0.00013424,2]
[360638579,1746912672362,-400.0,0.00013424,2]
[360638581,1746912672374,-632.05,0.00013424,2]
[360638583,1746912672383,-1052.41,0.00013424,2]
[360638585,1746912672394,-400.0,0.00013424,2]
[360638587,1746912672403,-459.64,0.00013424,2]
[360638589,1746912672412,-468.37,0.00013424,2]
[360638590,1746912672423,-403.73,0.00013424,2]
[360638592,1746912672432,-413.92,0.00013424,2]
[360638595,1746912672442,-619.62,0.00013424,2]
[360638596,1746912672453,-695.09,0.00013424,2]
[360638599,1746912672464,-735.58,0.00013424,2]
[360638601,1746912672473,-721.89,0.00013424,2]
[360638603,1746912672483,-1548.4,0.00013424,2]
[360638605,1746912672492,-2356.91,0.00013424,2]
[360638607,1746912672502,-794.11,0.00013424,2]
[360638609,1746912672512,-838.55,0.00013424,2]
[360638611,1746912672521,-161.29703727,0.00013424,2]
[360638613,1746912672531,-400.0,0.00013424,2]
[360638615,1746912672541,-3381.21,0.00013424,2]
[360638617,1746912672550,-2898.64,0.00013424,2]
[360638619,1746912672560,-481.84,0.00013424,2]
[360638621,1746912672569,-201.64203485,0.00013424,2]
[360638623,1746912672578,-400.0,0.00013424,2]
[360638625,1746912672588,-1333.51,0.00013424,2]
[360638627,1746912672597,-633.58,0.00013424,2]
[360638628,1746912672607,-400.0,0.00013424,2]
[360638631,1746912672617,-494.9,0.00013424,2]
[360638632,1746912672626,-513.57,0.00013424,2]
[360638634,1746912672635,-802.91,0.00013424,2]
[360638636,1746912672644,-505.78,0.00013424,2]
[360638638,1746912672654,-626.66,0.00013424,2]
[360638640,1746912672663,-809.51,0.00013424,2]
[360638642,1746912672673,-842.73,0.00013424,2]
[360638644,1746912672682,-697.59,0.00013424,2]
[360638646,1746912672691,-1841.44,0.00013424,2]
[360638648,1746912672701,-788.65,0.00013424,2]
[360638650,1746912672710,-1039.37,0.00013424,2]
[360638652,1746912672719,-569.05,0.00013424,2]
[360638654,1746912672728,-2342.17,0.00013424,2]
[360638656,1746912672738,-451.36,0.00013424,2]
[360638658,1746912672747,-695.2,0.00013424,2]
[360638660,1746912672757,-1028.56,0.00013424,2]
[360638662,1746912672767,-2119.75,0.00013424,2]
[360638664,1746912672776,-498.13,0.00013424,2]
[360638666,1746912672786,-4434.68,0.00013424,2]
[360638668,1746912672795,-935.35,0.00013424,2]
[360638670,1746912672804,-680.96,0.00013424,2]
[360638673,1746912672814,-626.61,0.00013424,2]
[360638675,1746912672824,-424.95,0.00013424,2]
[360638677,1746912672833,-1042.16,0.00013424,2]
[360638679,1746912672842,-2312.88,0.00013424,2]
[360638680,1746912672851,-400.0,0.00013424,2]
[360638682,1746912672861,-688.73,0.00013424,2]
[360638684,1746912672870,-706.22,0.00013424,2]
[360638687,1746912672880,-439.66,0.00013424,2]
[360638688,1746912672890,-1085.41,0.00013424,2]
[360638690,1746912672899,-841.55,0.00013424,2]
[360638693,1746912672908,-671.75,0.00013424,2]
[360638694,1746912672918,-168.29191848,0.00013424,2]
[360638696,1746912672927,-2146.14,0.00013424,2]
[360638698,1746912672936,-1015.72,0.00013424,2]
[360638701,1746912672946,-6440.41,0.00013424,2]
[360638702,1746912672955,-1037.4,0.00013424,2]
[360638705,1746912672965,-440.94,0.00013424,2]
[360638706,1746912672974,-470.51448532,0.00013424,2]
[360638708,1746912672984,-4790.07,0.00013424,2]
[360638710,1746912672994,-1429.95,0.00013424,2]
[360638713,1746912673003,-430.02,0.00013424,2]
[360638715,1746912673013,-269.39351429,0.00013424,2]
[360638716,1746912673022,-1223.02,0.00013424,2]
[360638718,1746912673032,-848.59,0.00013424,2]
[360638720,1746912673041,-2882.98,0.00013424,2]
[360638722,1746912673049,-513.02,0.00013424,2]
[360638724,1746912673058,-463.45,0.00013424,2]
[360638726,1746912673068,-573.32,0.00013424,2]
[360638728,1746912673077,-1204.18,0.00013424,2]
[360638730,1746912673087,-1967.65,0.00013424,2]
[360638732,1746912673096,-3088.11,0.00013424,2]
[360638734,1746912673106,-1232.95,0.00013424,2]
[360638736,1746912673116,-1041.57,0.00013424,2]
[360638739,1746912673126,-700.78,0.00013424,2]
[360638740,1746912673135,-4783.86,0.00013424,2]
[360638742,1746912673144,-407.69,0.00013424,2]
[360638744,1746912673154,-1652.45,0.00013424,2]
[360638747,1746912673163,-444.01,0.00013424,2]
[360638749,1746912673173,-1176.69,0.00013424,2]
[360638751,1746912673182,-513.96,0.00013424,2]
[360638753,1746912673191,-656.69,0.00013424,2]
[360638755,1746912673200,-4000.0,0.00013425,2]
[360638757,1746912673210,-200.0,0.00013444,2]
[360638759,1746912673220,-200.0,0.00013444,2]
[360638761,1746912673229,-900.08867886,0.00013672,2]
[360638763,1746912673239,-1096.32485293,0.00013672,2]
[360638765,1746912673249,-1000.0,0.00013672,2]
[360638767,1746912673261,-552.38520618,0.00013672,2]
[360638769,1746912673270,-1000.0,0.00013672,2]
[360638771,1746912673280,-500.0,0.00013672,2]
[360638773,1746912673289,-1000.0,0.00013672,2]
[360638775,1746912673299,-1000.0,0.00013672,2]
[360638777,1746912673308,-500.0,0.00013672,2]
[360638778,1746912673317,-1000.0,0.00013672,2]
[360638781,1746912673328,-1000.0,0.00013672,2]
[360638782,1746912673337,-1000.0,0.00013672,2]
[360638785,1746912673347,-1000.0,0.00013672,2]
[360638786,1746912673357,-931.46843391,0.00013672,2]
[360638788,1746912673367,-1005.51630665,0.00013672,2]
[360638790,1746912673381,-410.17326273,0.00013672,2]
[360638792,1746912673390,-500.0,0.00013672,2]
[360638794,1746912673400,-500.0,0.00013672,2]
[360638796,1746912673410,-1000.0,0.00013672,2]
[360638798,1746912673420,-1000.0,0.00013672,2]
[360638800,1746912673430,-1000.0,0.00013672,2]
[360638802,1746912673440,-1000.0,0.00013672,2]
[360638804,1746912673450,-1000.0,0.00013672,2]
[360638806,1746912673459,-1000.0,0.00013672,2]
[360638808,1746912673469,-500.0,0.00013672,2]
[360638810,1746912673478,-1000.0,0.00013672,2]
[360638812,1746912673488,-1000.0,0.00013672,2]
[360638814,1746912673498,-1000.0,0.00013672,2]
[360638816,1746912673507,-1000.0,0.00013672,2]
[360638818,1746912673517,-166.03840249,0.00013672,2]
[360638820,1746912673526,-1000.0,0.00013672,2]
[360638822,1746912673536,-151.0,0.00013695,2]
[360638824,1746912673545,-400.0,0.00013698,2]
[360638826,1746912673554,-500.0,0.00013698,2]
[360638828,1746912673564,-500.0,0.00013698,2]
[360638830,1746912673573,-389.40259724,0.00013698,2]
[360638833,1746912673583,-450.55,0.00013698,2]
[360638835,1746912673592,-400.0,0.00013698,2]
[360638837,1746912673602,-483.15,0.00013698,2]
[360638839,1746912673612,-400.0,0.00013698,2]
[360638841,1746912673621,-400.0,0.00013698,2]
[360638843,1746912673630,-767.08,0.00013698,2]
[360638845,1746912673642,-523.05,0.00013698,2]
[360638847,1746912673652,-400.0,0.00013698,2]
[360638849,1746912673662,-428.69,0.00013698,2]
[360638851,1746912673671,-1231.88,0.00013698,2]
[360638853,1746912673681,-400.0,0.00013698,2]
[360638855,1746912673690,-555.94,0.00013698,2]
[360638857,1746912673699,-1008.55,0.00013698,2]
[360638859,1746912673709,-400.0,0.00013698,2]
[360638861,1746912673719,-632.05,0.00013698,2]
[360638863,1746912673729,-1052.41,0.00013698,2]
[360638865,1746912673739,-414.17523988,0.00013698,2]
[360638867,1746912673749,-459.64,0.00013698,2]
[360638869,1746912673758,-468.37,0.00013698,2]
[360638871,1746912673768,-403.73,0.00013698,2]
[360638887,1746912673905,-413.92,0.00013698,2]
[360638889,1746912673916,-619.62,0.00013698,2]
[360638891,1746912673926,-695.09,0.00013698,2]
[360638893,1746912673937,-735.58,0.00013698,2]
[360638894,1746912673946,-721.89,0.00013698,2]
[360638895,1746912673956,-1548.4,0.00013698,2]
[360638896,1746912673965,-2356.91,0.00013698,2]
[360638897,1746912673974,-794.11,0.00013698,2]
[360638898,1746912673984,-838.55,0.00013698,2]
[360638899,1746912673993,-400.0,0.00013698,2]
[360638900,1746912674003,-3381.21,0.00013698,2]
[360638901,1746912674012,-2898.64,0.00013698,2]
[360638902,1746912674022,-481.84,0.00013698,2]
[360638903,1746912674031,-355.59413168,0.00013698,2]
[360638904,1746912674040,-1333.51,0.00013698,2]
[360638906,1746912674050,-633.58,0.00013698,2]
[360638908,1746912674059,-231.25761208,0.00013698,2]
[360638910,1746912674068,-494.9,0.00013698,2]
[360638912,1746912674078,-513.57,0.00013698,2]
[360638914,1746912674087,-802.91,0.00013698,2]
[360638916,1746912674097,-505.78,0.00013698,2]
[360638918,1746912674107,-626.66,0.00013698,2]
[360638920,1746912674116,-1000.0,0.00013698,2]
[360638922,1746912674125,-400.0,0.00013698,2]
[360638924,1746912674134,-1000.0,0.00013698,2]
[360638926,1746912674143,-261.98164089,0.00013698,2]
[360638928,1746912674153,-1000.0,0.00013698,2]
[360638930,1746912674162,-1000.0,0.00013698,2]
[360638932,1746912674171,-1000.0,0.00013698,2]
[360638934,1746912674181,-1000.0,0.00013698,2]
[360638936,1746912674191,-1000.0,0.00013698,2]
[360638938,1746912674200,-1000.0,0.00013698,2]
[360638940,1746912674210,-1000.0,0.00013698,2]
[360638942,1746912674219,-1132.55883847,0.00013698,2]
[360638944,1746912674229,-809.51,0.00013698,2]
[360638946,1746912674238,-500.0,0.00013698,2]
[360638948,1746912674248,-500.0,0.00013698,2]
[360638950,1746912674257,-500.0,0.00013698,2]
[360638952,1746912674267,-500.0,0.00013698,2]
[360638954,1746912674276,-500.0,0.00013698,2]
[360638956,1746912674285,-500.0,0.00013698,2]
[360638958,1746912674295,-500.0,0.00013698,2]
[360638960,1746912674304,-500.0,0.00013698,2]
[360638961,1746912674313,-500.0,0.00013698,2]
[360638963,1746912674322,-500.0,0.00013698,2]
[360638965,1746912674331,-177.09281167,0.00013698,2]
[360638967,1746912674341,-842.73,0.00013698,2]
[360638969,1746912674351,-697.59,0.00013698,2]
[360638971,1746912674361,-1841.44,0.00013698,2]
[360638973,1746912674371,-788.65,0.00013698,2]
[360638975,1746912674384,-1039.37,0.00013698,2]
[360638978,1746912674395,-569.05,0.00013698,2]
[360638980,1746912674405,-2342.17,0.00013698,2]
[360638982,1746912674416,-451.36,0.00013698,2]
[360638984,1746912674426,-695.2,0.00013698,2]
[360638986,1746912674436,-1028.56,0.00013698,2]
[360638988,1746912674447,-2119.75,0.00013698,2]
[360638990,1746912674459,-498.13,0.00013698,2]
[360638992,1746912674469,-4434.68,0.00013698,2]
[360638994,1746912674478,-935.35,0.00013698,2]
[360638996,1746912674488,-680.96,0.00013698,2]
[360638998,1746912674499,-626.61,0.00013698,2]
[360639000,1746912674508,-424.95,0.00013698,2]
[360639002,1746912674518,-1042.16,0.00013698,2]
[360639004,1746912674527,-2312.88,0.00013698,2]
[360639006,1746912674536,-400.0,0.00013698,2]
[360639008,1746912674546,-688.73,0.00013698,2]
[360639010,1746912674556,-706.22,0.00013698,2]
[360639012,1746912674566,-439.66,0.00013698,2]
[360639014,1746912674576,-1085.41,0.00013698,2]
[360639016,1746912674585,-841.55,0.00013698,2]
[360639018,1746912674595,-671.75,0.00013698,2]
[360639020,1746912674604,-2146.14,0.00013698,2]
[360639022,1746912674614,-1015.72,0.00013698,2]
[360639024,1746912674623,-6440.41,0.00013698,2]
[360639026,1746912674633,-1037.4,0.00013698,2]
[360639028,1746912674643,-440.94,0.00013698,2]
[360639030,1746912674652,-4790.07,0.00013698,2]
[360639032,1746912674662,-1429.95,0.00013698,2]
[360639034,1746912674671,-430.02,0.00013698,2]
[360639036,1746912674682,-1223.02,0.00013698,2]
[360639038,1746912674692,-848.59,0.00013698,2]
[360639040,1746912674701,-2882.98,0.00013698,2]
[360639042,1746912674711,-513.02,0.00013698,2]
[360639044,1746912674722,-463.45,0.00013698,2]
[360639046,1746912674732,-573.32,0.00013698,2]
[360639048,1746912674741,-1204.18,0.00013698,2]
[360639050,1746912674751,-1967.65,0.00013698,2]
[360639052,1746912674761,-3088.11,0.00013698,2]
[360639054,1746912674770,-1232.95,0.00013698,2]
[360639056,1746912674780,-1041.57,0.00013698,2]